[Event "Betsys MČR v online bleskovém šachu 2021"]
[Site "Chess.com"]
[Date "2021.04.17"]
[Round "5"]
[White "TomasOrnet1"]
[Black "misacz"]
[Result "1-0"]
[WhiteElo "1505"]
[BlackElo "1075"]
[TimeControl "180+1"]
[EndTime "9:50:05 PDT"]
[Termination "Uživatel TomasOrnet1 zvítězil matem"]

1. e4 {[%clk 0:02:58.2]} 1... e6 {[%clk 0:02:58.6]} 2. d4 {[%clk 0:02:56.4]}
2... d5 {[%clk 0:02:58.8]} 3. exd5 {[%clk 0:02:54.5]} 3... exd5 {[%clk
0:02:58.8]} 4. Nf3 {[%clk 0:02:53.9]} 4... Nf6 {[%clk 0:02:57.1]} 5. Nc3 {[%clk
0:02:46.1]} 5... Nc6 {[%clk 0:02:54.8]} 6. Nb5 {[%clk 0:02:43.8]} 6... a6 {[%clk
0:02:47.3]} 7. Nc3 {[%clk 0:02:39.7]} 7... Bb4 {[%clk 0:02:46.6]} 8. Bd2 {[%clk
0:02:38.4]} 8... Be6 {[%clk 0:02:46]} 9. Bd3 {[%clk 0:02:34.7]} 9... O-O {[%clk
0:02:44.4]} 10. O-O {[%clk 0:02:33.2]} 10... Bg4 {[%clk 0:02:42.5]} 11. Be3
{[%clk 0:02:29.1]} 11... Bxc3 {[%clk 0:02:40.3]} 12. bxc3 {[%clk 0:02:27.6]}
12... Re8 {[%clk 0:02:26.3]} 13. h3 {[%clk 0:02:24.5]} 13... Bh5 {[%clk
0:02:25.7]} 14. Bg5 {[%clk 0:02:17.6]} 14... h6 {[%clk 0:02:22.9]} 15. Bh4
{[%clk 0:02:16.9]} 15... Qd6 {[%clk 0:02:20.1]} 16. Qd2 {[%clk 0:01:52.7]} 16...
Bxf3 {[%clk 0:02:13.4]} 17. gxf3 {[%clk 0:01:51.4]} 17... Nh5 {[%clk 0:02:02.3]}
18. Rae1 {[%clk 0:01:38.5]} 18... Nf4 {[%clk 0:01:58.3]} 19. Bg3 {[%clk
0:01:37.5]} 19... Nxh3+ {[%clk 0:01:49]} 20. Kh2 {[%clk 0:01:34.8]} 20... Ng5
{[%clk 0:01:31.8]} 21. Bxd6 {[%clk 0:01:33]} 21... Nxf3+ {[%clk 0:01:31.6]} 22.
Kg3 {[%clk 0:01:03.1]} 22... Nxd2 {[%clk 0:01:30.9]} 23. Rxe8+ {[%clk
0:00:59.2]} 23... Rxe8 {[%clk 0:01:30.3]} 24. Rd1 {[%clk 0:00:56.7]} 24... cxd6
{[%clk 0:01:03.5]} 25. Rxd2 {[%clk 0:00:55.4]} 25... Re1 {[%clk 0:00:51.7]} 26.
c4 {[%clk 0:00:53.1]} 26... dxc4 {[%clk 0:00:51.1]} 27. Bxc4 {[%clk 0:00:51.6]}
27... Rg1+ {[%clk 0:00:47.8]} 28. Kh2 {[%clk 0:00:50]} 28... Rg4 {[%clk
0:00:46.6]} 29. c3 {[%clk 0:00:47.7]} 29... Rh4+ {[%clk 0:00:44.8]} 30. Kg3
{[%clk 0:00:46.3]} 30... Rh1 {[%clk 0:00:43.1]} 31. Rd3 {[%clk 0:00:42.6]} 31...
Re1 {[%clk 0:00:35.7]} 32. Rf3 {[%clk 0:00:42]} 32... Re7 {[%clk 0:00:30.1]} 33.
Bd5 {[%clk 0:00:19.7]} 33... Rc7 {[%clk 0:00:22.2]} 34. c4 {[%clk 0:00:14.1]}
34... Nxd4 {[%clk 0:00:19.2]} 35. Rd3 {[%clk 0:00:12.4]} 35... Ne2+ {[%clk
0:00:18.8]} 36. Kf3 {[%clk 0:00:08.3]} 36... Ng1+ {[%clk 0:00:18.5]} 37. Kg2
{[%clk 0:00:07.1]} 37... Ne2 {[%clk 0:00:18.1]} 38. Kf3 {[%clk 0:00:06.9]} 38...
Nc1 {[%clk 0:00:16.1]} 39. Rd2 {[%clk 0:00:04.9]} 39... Re7 {[%clk 0:00:10.4]}
40. Rc2 {[%clk 0:00:03.9]} 40... Re5 {[%clk 0:00:06.9]} 41. Rxc1 {[%clk
0:00:03]} 41... Re8 {[%clk 0:00:06.9]} 42. Rc2 {[%clk 0:00:02.8]} 42... Re7
{[%clk 0:00:06.4]} 43. Rb2 {[%clk 0:00:02.9]} 43... Kh7 {[%clk 0:00:05]} 44.
Rxb7 {[%clk 0:00:02.4]} 44... Rxb7 {[%clk 0:00:05.9]} 45. Bxb7 {[%clk
0:00:01.7]} 45... Kg8 {[%clk 0:00:06.6]} 46. Bxa6 {[%clk 0:00:01.8]} 46... Kf8
{[%clk 0:00:07.5]} 47. Bb5 {[%clk 0:00:02]} 47... Ke7 {[%clk 0:00:08.4]} 48. a3
{[%clk 0:00:02.2]} 48... Ke6 {[%clk 0:00:08.9]} 49. a4 {[%clk 0:00:02.6]} 49...
Ke7 {[%clk 0:00:09.4]} 50. a5 {[%clk 0:00:03.5]} 50... Kd8 {[%clk 0:00:10.3]}
51. a6 {[%clk 0:00:04.4]} 51... Kc8 {[%clk 0:00:11.2]} 52. a7 {[%clk 0:00:05.3]}
52... Kb7 {[%clk 0:00:11.5]} 53. a8=Q+ {[%clk 0:00:05.1]} 53... Kxa8 {[%clk
0:00:12]} 54. Bc6+ {[%clk 0:00:04.6]} 54... Ka7 {[%clk 0:00:11.9]} 55. Bd5
{[%clk 0:00:04.7]} 55... Kb6 {[%clk 0:00:12.8]} 56. Bxf7 {[%clk 0:00:04.6]}
56... Kc5 {[%clk 0:00:13.7]} 57. Ke4 {[%clk 0:00:04.6]} 57... Kb4 {[%clk
0:00:12.8]} 58. Kd4 {[%clk 0:00:04.8]} 58... Ka3 {[%clk 0:00:12.6]} 59. Kd5
{[%clk 0:00:05]} 59... Kb2 {[%clk 0:00:13.5]} 60. Kxd6 {[%clk 0:00:05.2]} 60...
Kc1 {[%clk 0:00:14]} 61. Ke7 {[%clk 0:00:05.3]} 61... Kd2 {[%clk 0:00:14.9]} 62.
Kf8 {[%clk 0:00:05.5]} 62... Ke1 {[%clk 0:00:15.8]} 63. Kxg7 {[%clk 0:00:05.7]}
63... Kxf2 {[%clk 0:00:16.7]} 64. Kxh6 {[%clk 0:00:05.7]} 64... Ke3 {[%clk
0:00:17.6]} 65. c5 {[%clk 0:00:05.9]} 65... Kd4 {[%clk 0:00:18.5]} 66. c6 {[%clk
0:00:06.3]} 66... Ke5 {[%clk 0:00:17.5]} 67. c7 {[%clk 0:00:07.2]} 67... Kd6
{[%clk 0:00:18.2]} 68. c8=Q {[%clk 0:00:07.6]} 68... Ke7 {[%clk 0:00:17.5]} 69.
Qe8+ {[%clk 0:00:08.5]} 69... Kd6 {[%clk 0:00:17.5]} 70. Qe1 {[%clk 0:00:08.4]}
70... Kc5 {[%clk 0:00:16.7]} 71. Kg5 {[%clk 0:00:08.5]} 71... Kd4 {[%clk
0:00:16.5]} 72. Kf5 {[%clk 0:00:08.5]} 72... Kd3 {[%clk 0:00:14.8]} 73. Kf4
{[%clk 0:00:08.6]} 73... Kd4 {[%clk 0:00:14.5]} 74. Qd1+ {[%clk 0:00:08.3]}
74... Kc3 {[%clk 0:00:15.3]} 75. Ke3 {[%clk 0:00:07.9]} 75... Kb4 {[%clk
0:00:14.4]} 76. Qb1+ {[%clk 0:00:07.4]} 76... Kc3 {[%clk 0:00:13.8]} 77. Qc1+
{[%clk 0:00:07.2]} 77... Kb4 {[%clk 0:00:14]} 78. Kd4 {[%clk 0:00:07.1]} 78...
Kb5 {[%clk 0:00:13.9]} 79. Qb1+ {[%clk 0:00:06.4]} 79... Kc6 {[%clk 0:00:13.4]}
80. Ke5 {[%clk 0:00:06.4]} 80... Kc5 {[%clk 0:00:13.2]} 81. Qc1+ {[%clk
0:00:05.4]} 81... Kb4 {[%clk 0:00:13]} 82. Bh5 {[%clk 0:00:05]} 82... Kb5 {[%clk
0:00:11.2]} 83. Kd5 {[%clk 0:00:04.8]} 83... Kb4 {[%clk 0:00:12.1]} 84. Qc4+
{[%clk 0:00:04.1]} 84... Ka3 {[%clk 0:00:11.9]} 85. Qb5 {[%clk 0:00:03.7]} 85...
Ka2 {[%clk 0:00:11.5]} 86. Qb8 {[%clk 0:00:03.5]} 86... Ka3 {[%clk 0:00:11.6]}
87. Kc4 {[%clk 0:00:03.3]} 87... Ka2 {[%clk 0:00:11.8]} 88. Kc3 {[%clk
0:00:03.3]} 88... Ka1 {[%clk 0:00:12.2]} 89. Kc2 {[%clk 0:00:03]} 89... Ka2
{[%clk 0:00:01.1]} 90. Qa8# {[%clk 0:00:03.9]} 1-0

[Event "Betsys MČR v online bleskovém šachu 2021"]
[Site "Chess.com"]
[Date "2021.04.17"]
[Round "6"]
[White "Herracek"]
[Black "HCMotorCB"]
[Result "1-0"]
[WhiteElo "2616"]
[BlackElo "2382"]
[TimeControl "180+1"]
[EndTime "9:52:04 PDT"]
[Termination "Uživatel Herracek zvítězil po vzdání soupeře"]

1. c4 {[%clk 0:03:00.9]} 1... c5 {[%clk 0:02:58.6]} 2. g3 {[%clk 0:03:00.7]}
2... g6 {[%clk 0:02:59]} 3. Bg2 {[%clk 0:03:01.1]} 3... Bg7 {[%clk 0:02:59.5]}
4. Nc3 {[%clk 0:03:01.8]} 4... Nf6 {[%clk 0:02:59.8]} 5. d3 {[%clk 0:03:02.2]}
5... O-O {[%clk 0:03:00]} 6. Bg5 {[%clk 0:03:02.7]} 6... Nc6 {[%clk 0:02:59.6]}
7. Qd2 {[%clk 0:03:02.7]} 7... a6 {[%clk 0:02:58.6]} 8. Bh6 {[%clk 0:03:02.7]}
8... Rb8 {[%clk 0:02:57.7]} 9. h4 {[%clk 0:03:02.3]} 9... b5 {[%clk 0:02:55.1]}
10. cxb5 {[%clk 0:03:02.2]} 10... axb5 {[%clk 0:02:54.8]} 11. h5 {[%clk
0:03:02.2]} 11... b4 {[%clk 0:02:42.5]} 12. Nd5 {[%clk 0:03:00.9]} 12... Nxd5
{[%clk 0:02:40.6]} 13. Bxd5 {[%clk 0:03:01.8]} 13... e6 {[%clk 0:02:28.1]} 14.
Bxg7 {[%clk 0:03:01.8]} 14... Kxg7 {[%clk 0:02:27.1]} 15. hxg6 {[%clk
0:03:02.2]} 15... hxg6 {[%clk 0:02:23.4]} 16. Qh6+ {[%clk 0:03:00.3]} 16... Kf6
{[%clk 0:02:23.6]} 17. Bxc6 {[%clk 0:02:57.8]} 17... dxc6 {[%clk 0:02:23.4]} 18.
Qf4+ {[%clk 0:02:57.9]} 18... Kg7 {[%clk 0:02:21.8]} 19. Qxb8 {[%clk 0:02:58.8]}
19... Qd4 {[%clk 0:02:19.6]} 20. Nf3 {[%clk 0:02:54.9]} 20... Qxb2 {[%clk
0:02:19.4]} 21. Qe5+ {[%clk 0:02:55.5]} 1-0

[Event "Betsys MČR v online bleskovém šachu 2021"]
[Site "Chess.com"]
[Date "2021.04.17"]
[Round "6"]
[White "nw_tynka"]
[Black "PaulS_CR"]
[Result "1-0"]
[WhiteElo "2189"]
[BlackElo "1850"]
[TimeControl "180+1"]
[EndTime "9:52:05 PDT"]
[Termination "Uživatel nw_tynka zvítězil po vzdání soupeře"]

1. e4 {[%clk 0:03:00.9]} 1... e6 {[%clk 0:02:59.3]} 2. d4 {[%clk 0:03:00.5]}
2... d5 {[%clk 0:02:57.9]} 3. Nc3 {[%clk 0:03:00.8]} 3... Bb4 {[%clk 0:02:57]}
4. Bd3 {[%clk 0:02:56.3]} 4... dxe4 {[%clk 0:02:54.3]} 5. Bxe4 {[%clk
0:02:57.2]} 5... Nf6 {[%clk 0:02:53.2]} 6. Bf3 {[%clk 0:02:56.6]} 6... O-O
{[%clk 0:02:53.1]} 7. Ne2 {[%clk 0:02:53.8]} 7... c5 {[%clk 0:02:49.1]} 8. O-O
{[%clk 0:02:50.5]} 8... cxd4 {[%clk 0:02:45.3]} 9. Nxd4 {[%clk 0:02:43.6]} 9...
Bd7 {[%clk 0:02:36.4]} 10. Bxb7 {[%clk 0:02:37.8]} 10... Bxc3 {[%clk 0:02:26.7]}
11. bxc3 {[%clk 0:02:35.3]} 1-0

[Event "Betsys MČR v online bleskovém šachu 2021"]
[Site "Chess.com"]
[Date "2021.04.17"]
[Round "6"]
[White "Joanna23W"]
[Black "Bohous13"]
[Result "1-0"]
[WhiteElo "2675"]
[BlackElo "2211"]
[TimeControl "180+1"]
[EndTime "9:52:13 PDT"]
[Termination "Uživatel Joanna23W zvítězil po vzdání soupeře"]

1. e4 {[%clk 0:03:00.9]} 1... e6 {[%clk 0:03:00.3]} 2. d4 {[%clk 0:03:00.3]}
2... d5 {[%clk 0:03:00.7]} 3. Nc3 {[%clk 0:02:59.6]} 3... dxe4 {[%clk
0:03:01.3]} 4. Nxe4 {[%clk 0:02:59.1]} 4... Nd7 {[%clk 0:03:01.9]} 5. Nf3 {[%clk
0:02:58]} 5... Ngf6 {[%clk 0:03:02.5]} 6. Bg5 {[%clk 0:02:57]} 6... Be7 {[%clk
0:03:02.9]} 7. Bxf6 {[%clk 0:02:57]} 7... Nxf6 {[%clk 0:03:02.5]} 8. Bd3 {[%clk
0:02:53.4]} 8... b6 {[%clk 0:02:59.7]} 9. Qe2 {[%clk 0:02:52.6]} 9... Bb7 {[%clk
0:02:59.5]} 10. O-O {[%clk 0:02:52.6]} 10... O-O {[%clk 0:02:59.5]} 11. c3
{[%clk 0:02:50.3]} 11... c5 {[%clk 0:02:54.9]} 12. Rad1 {[%clk 0:02:49.1]} 12...
cxd4 {[%clk 0:02:52.2]} 13. Nxd4 {[%clk 0:02:48.7]} 13... Nxe4 {[%clk
0:02:48.1]} 14. Bxe4 {[%clk 0:02:48.7]} 14... Bxe4 {[%clk 0:02:48.2]} 15. Nxe6
{[%clk 0:02:31.5]} 1-0

[Event "Betsys MČR v online bleskovém šachu 2021"]
[Site "Chess.com"]
[Date "2021.04.17"]
[Round "6"]
[White "kaprasov"]
[Black "Bagr92"]
[Result "1-0"]
[WhiteElo "1877"]
[BlackElo "1578"]
[TimeControl "180+1"]
[EndTime "9:52:32 PDT"]
[Termination "Uživatel kaprasov zvítězil matem"]

1. d4 {[%clk 0:03:00.9]} 1... d5 {[%clk 0:02:55.7]} 2. Bf4 {[%clk 0:03:00]} 2...
e6 {[%clk 0:02:55.3]} 3. e3 {[%clk 0:03:00.4]} 3... Nf6 {[%clk 0:02:55.7]} 4.
Nd2 {[%clk 0:02:57.8]} 4... c5 {[%clk 0:02:56.6]} 5. c3 {[%clk 0:02:57.7]} 5...
Nc6 {[%clk 0:02:55.7]} 6. Ngf3 {[%clk 0:02:57.5]} 6... Bd7 {[%clk 0:02:54.6]} 7.
Ne5 {[%clk 0:02:56.5]} 7... Be7 {[%clk 0:02:50.9]} 8. Bd3 {[%clk 0:02:56.6]}
8... c4 {[%clk 0:02:49.9]} 9. Bc2 {[%clk 0:02:56.3]} 9... O-O {[%clk 0:02:50.8]}
10. h4 {[%clk 0:02:48.9]} 10... Nh5 {[%clk 0:02:42]} 11. Qxh5 {[%clk 0:02:47.1]}
11... g6 {[%clk 0:02:41.8]} 12. Qh6 {[%clk 0:02:34.6]} 12... Bf6 {[%clk
0:02:37.6]} 13. Bg5 {[%clk 0:02:15.2]} 13... b5 {[%clk 0:02:29.5]} 14. Nxd7
{[%clk 0:02:09.4]} 14... Bxg5 {[%clk 0:02:24]} 15. hxg5 {[%clk 0:02:09.6]} 15...
Qxd7 {[%clk 0:02:21.6]} 16. Qxh7# {[%clk 0:02:09.7]} 1-0

[Event "Betsys MČR v online bleskovém šachu 2021"]
[Site "Chess.com"]
[Date "2021.04.17"]
[Round "6"]
[White "Berzeger"]
[Black "horalek"]
[Result "0-1"]
[WhiteElo "1032"]
[BlackElo "1347"]
[TimeControl "180+1"]
[EndTime "9:52:32 PDT"]
[Termination "Uživatel horalek zvítězil po vzdání soupeře"]

1. e4 {[%clk 0:03:00.9]} 1... c6 {[%clk 0:02:56.9]} 2. d4 {[%clk 0:03:00.6]}
2... d5 {[%clk 0:02:55.9]} 3. e5 {[%clk 0:02:57.4]} 3... Bf5 {[%clk 0:02:54.3]}
4. Nf3 {[%clk 0:02:56.1]} 4... e6 {[%clk 0:02:52.8]} 5. Nc3 {[%clk 0:02:54.8]}
5... c5 {[%clk 0:02:48.8]} 6. Bg5 {[%clk 0:02:39.3]} 6... Qb6 {[%clk 0:02:44.1]}
7. Bb5+ {[%clk 0:02:26.5]} 7... Nc6 {[%clk 0:02:40.5]} 8. Bxc6+ {[%clk 0:02:25]}
8... Qxc6 {[%clk 0:02:36.3]} 9. b3 {[%clk 0:02:25.6]} 9... cxd4 {[%clk
0:02:32.8]} 10. Nxd4 {[%clk 0:02:24.5]} 10... Qxc3+ {[%clk 0:02:30.7]} 11. Bd2
{[%clk 0:02:20.2]} 11... Qxd4 {[%clk 0:02:28]} 12. Qe2 {[%clk 0:02:02.6]} 12...
Qxa1+ {[%clk 0:02:22.9]} 0-1

[Event "Betsys MČR v online bleskovém šachu 2021"]
[Site "Chess.com"]
[Date "2021.04.17"]
[Round "6"]
[White "sachovybukowski"]
[Black "lupinek23"]
[Result "1-0"]
[WhiteElo "1983"]
[BlackElo "1621"]
[TimeControl "180+1"]
[EndTime "9:52:49 PDT"]
[Termination "Uživatel sachovybukowski zvítězil po vzdání soupeře"]

1. d4 {[%clk 0:02:46.7]} 1... d5 {[%clk 0:02:38.5]} 2. Bg5 {[%clk 0:02:46.3]}
2... Nf6 {[%clk 0:02:36.8]} 3. e3 {[%clk 0:02:45.8]} 3... e6 {[%clk 0:02:35.7]}
4. Bd3 {[%clk 0:02:45]} 4... Be7 {[%clk 0:02:35.7]} 5. Nd2 {[%clk 0:02:44.7]}
5... h6 {[%clk 0:02:35.9]} 6. Bh4 {[%clk 0:02:44.3]} 6... O-O {[%clk 0:02:36.1]}
7. f4 {[%clk 0:02:44.4]} 7... Ne4 {[%clk 0:02:35.8]} 8. Bxe7 {[%clk 0:02:43.6]}
8... Qxe7 {[%clk 0:02:35.4]} 9. Nxe4 {[%clk 0:02:43.6]} 9... dxe4 {[%clk
0:02:34.7]} 10. Bxe4 {[%clk 0:02:41.8]} 10... Qb4+ {[%clk 0:02:34.1]} 11. c3
{[%clk 0:02:24.7]} 11... Qxb2 {[%clk 0:02:33.6]} 12. Ne2 {[%clk 0:02:24.1]}
12... Bd7 {[%clk 0:02:29.8]} 13. Rb1 {[%clk 0:02:19.8]} 13... Qxa2 {[%clk
0:02:27.5]} 14. Bxb7 {[%clk 0:02:12.3]} 14... Bc6 {[%clk 0:02:26.6]} 15. Bxa8
{[%clk 0:02:11.9]} 15... Bxa8 {[%clk 0:02:26.1]} 16. O-O {[%clk 0:02:11.5]}
16... Qb3 {[%clk 0:02:25.3]} 17. Qxb3 {[%clk 0:02:09.3]} 1-0

[Event "Betsys MČR v online bleskovém šachu 2021"]
[Site "Chess.com"]
[Date "2021.04.17"]
[Round "6"]
[White "DrDANDog"]
[Black "vaclavbelaska"]
[Result "1-0"]
[WhiteElo "1768"]
[BlackElo "1400"]
[TimeControl "180+1"]
[EndTime "9:53:01 PDT"]
[Termination "Uživatel DrDANDog zvítězil po vzdání soupeře"]

1. e4 {[%clk 0:03:00.9]} 1... d5 {[%clk 0:02:56.1]} 2. exd5 {[%clk 0:03:00.6]}
2... Nf6 {[%clk 0:02:54.3]} 3. Nc3 {[%clk 0:03:00.1]} 3... Nxd5 {[%clk
0:02:53.2]} 4. Nxd5 {[%clk 0:03:01]} 4... Qxd5 {[%clk 0:02:49.2]} 5. Nf3 {[%clk
0:03:01.6]} 5... Nc6 {[%clk 0:02:44.3]} 6. b3 {[%clk 0:02:59.1]} 6... e5 {[%clk
0:02:42.1]} 7. Bc4 {[%clk 0:02:48]} 7... Qd6 {[%clk 0:02:34]} 8. O-O {[%clk
0:02:38.3]} 8... Be7 {[%clk 0:02:28]} 9. Bb2 {[%clk 0:02:36.8]} 9... f6 {[%clk
0:02:20.7]} 10. d4 {[%clk 0:02:32.3]} 10... Be6 {[%clk 0:02:04.9]} 11. Bxe6
{[%clk 0:02:29.4]} 11... Qxe6 {[%clk 0:02:00]} 12. d5 {[%clk 0:02:29.9]} 1-0

[Event "Betsys MČR v online bleskovém šachu 2021"]
[Site "Chess.com"]
[Date "2021.04.17"]
[Round "6"]
[White "stripe122"]
[Black "adambelaska"]
[Result "1-0"]
[WhiteElo "1792"]
[BlackElo "1434"]
[TimeControl "180+1"]
[EndTime "9:53:03 PDT"]
[Termination "Uživatel stripe122 zvítězil po vzdání soupeře"]

1. e4 {[%clk 0:03:00.9]} 1... d5 {[%clk 0:03:00.9]} 2. exd5 {[%clk 0:02:59.3]}
2... Nf6 {[%clk 0:02:59.9]} 3. c4 {[%clk 0:02:58.1]} 3... e6 {[%clk 0:02:54.9]}
4. dxe6 {[%clk 0:02:54]} 4... Bxe6 {[%clk 0:02:54.6]} 5. d4 {[%clk 0:02:53]}
5... c5 {[%clk 0:02:50.4]} 6. d5 {[%clk 0:02:50.6]} 6... Bf5 {[%clk 0:02:50.2]}
7. Bd3 {[%clk 0:02:47.8]} 7... Bxd3 {[%clk 0:02:44.5]} 8. Qxd3 {[%clk
0:02:46.3]} 8... Qe7+ {[%clk 0:02:44.7]} 9. Ne2 {[%clk 0:02:45]} 9... Ne4 {[%clk
0:02:42.6]} 10. O-O {[%clk 0:02:41.9]} 10... Ng5 {[%clk 0:02:40]} 11. Be3 {[%clk
0:02:30]} 11... Ne4 {[%clk 0:02:34.2]} 12. Nbc3 {[%clk 0:02:25.1]} 12... Nxc3
{[%clk 0:02:26.3]} 13. Nxc3 {[%clk 0:02:22.8]} 13... Nd7 {[%clk 0:02:23.7]} 14.
Rfe1 {[%clk 0:02:17.4]} 14... Ne5 {[%clk 0:02:22.3]} 15. Qe2 {[%clk 0:02:08.4]}
15... Ng4 {[%clk 0:02:20.5]} 16. Qxg4 {[%clk 0:02:02.6]} 16... g6 {[%clk
0:02:17]} 17. Bxc5 {[%clk 0:01:58.8]} 17... Qxe1+ {[%clk 0:02:14]} 18. Rxe1+
{[%clk 0:01:58]} 18... Kd8 {[%clk 0:02:12]} 19. Bxf8 {[%clk 0:01:56.7]} 1-0

[Event "Betsys MČR v online bleskovém šachu 2021"]
[Site "Chess.com"]
[Date "2021.04.17"]
[Round "6"]
[White "rakintsev"]
[Black "ritchi12"]
[Result "1-0"]
[WhiteElo "1744"]
[BlackElo "1118"]
[TimeControl "180+1"]
[EndTime "9:53:03 PDT"]
[Termination "Uživatel rakintsev zvítězil matem"]

1. e4 {[%clk 0:02:57.8]} 1... e5 {[%clk 0:03:00]} 2. f4 {[%clk 0:02:47.1]} 2...
exf4 {[%clk 0:02:59.2]} 3. Nf3 {[%clk 0:02:46.9]} 3... Nc6 {[%clk 0:02:58.4]} 4.
Bc4 {[%clk 0:02:46.1]} 4... Be7 {[%clk 0:02:53.7]} 5. O-O {[%clk 0:02:44.9]}
5... Nh6 {[%clk 0:02:51.7]} 6. d4 {[%clk 0:02:44.4]} 6... O-O {[%clk 0:02:49.5]}
7. Bxf4 {[%clk 0:02:43]} 7... d6 {[%clk 0:02:47.2]} 8. c3 {[%clk 0:02:40.3]}
8... Ng4 {[%clk 0:02:43.4]} 9. Qe1 {[%clk 0:02:18.7]} 9... Bh4 {[%clk 0:02:36]}
10. Nxh4 {[%clk 0:02:15.3]} 10... Qf6 {[%clk 0:02:28.4]} 11. Qg3 {[%clk
0:02:08.4]} 11... Qg6 {[%clk 0:02:25.9]} 12. Nxg6 {[%clk 0:02:06.4]} 12... hxg6
{[%clk 0:02:22.6]} 13. h3 {[%clk 0:02:02.6]} 13... Nh6 {[%clk 0:02:21.1]} 14.
Bxh6 {[%clk 0:01:56.8]} 14... gxh6 {[%clk 0:02:20.7]} 15. Qxg6+ {[%clk
0:01:56.7]} 15... Kh8 {[%clk 0:02:17.4]} 16. Qxh6+ {[%clk 0:01:56.6]} 16... Kg8
{[%clk 0:02:17]} 17. Rf6 {[%clk 0:01:56.4]} 17... Be6 {[%clk 0:02:15.6]} 18.
Qg5+ {[%clk 0:01:53.3]} 18... Kh7 {[%clk 0:02:14.7]} 19. Rh6# {[%clk 0:01:53]}
1-0

[Event "Betsys MČR v online bleskovém šachu 2021"]
[Site "Chess.com"]
[Date "2021.04.17"]
[Round "6"]
[White "Kijonker"]
[Black "Jaja15F"]
[Result "1-0"]
[WhiteElo "1469"]
[BlackElo "1113"]
[TimeControl "180+1"]
[EndTime "9:53:13 PDT"]
[Termination "Uživatel Kijonker zvítězil matem"]

1. e4 {[%clk 0:02:54]} 1... e5 {[%clk 0:02:57.9]} 2. Nf3 {[%clk 0:02:53.4]} 2...
Nc6 {[%clk 0:02:57]} 3. Bc4 {[%clk 0:02:52.5]} 3... h6 {[%clk 0:02:55.8]} 4. d4
{[%clk 0:02:47.2]} 4... exd4 {[%clk 0:02:55]} 5. Nxd4 {[%clk 0:02:46.5]} 5...
Nf6 {[%clk 0:02:51.2]} 6. Nc3 {[%clk 0:02:40.1]} 6... Bc5 {[%clk 0:02:47.3]} 7.
Nxc6 {[%clk 0:02:38.2]} 7... dxc6 {[%clk 0:02:40.4]} 8. Qxd8+ {[%clk 0:02:37.1]}
8... Kxd8 {[%clk 0:02:39.9]} 9. O-O {[%clk 0:02:36.9]} 9... Ke7 {[%clk
0:02:38.6]} 10. Bf4 {[%clk 0:02:30.4]} 10... Bd6 {[%clk 0:02:35.9]} 11. Bg3
{[%clk 0:02:27.4]} 11... Bxg3 {[%clk 0:02:31.8]} 12. fxg3 {[%clk 0:02:23.9]}
12... Re8 {[%clk 0:02:28.1]} 13. e5 {[%clk 0:02:23.5]} 13... Nd7 {[%clk
0:02:04.2]} 14. Rxf7+ {[%clk 0:02:19.5]} 14... Kd8 {[%clk 0:02:03.6]} 15. e6
{[%clk 0:02:18.3]} 15... Nf6 {[%clk 0:02:00.6]} 16. Rd1+ {[%clk 0:02:17.5]}
16... Bd7 {[%clk 0:01:57.9]} 17. exd7 {[%clk 0:02:16.6]} 17... Re7 {[%clk
0:01:57]} 18. Rf8+ {[%clk 0:02:14.8]} 18... Ne8 {[%clk 0:01:44.9]} 19. dxe8=Q#
{[%clk 0:02:12.9]} 1-0

[Event "Betsys MČR v online bleskovém šachu 2021"]
[Site "Chess.com"]
[Date "2021.04.17"]
[Round "6"]
[White "OndrejBorkovec"]
[Black "malviny"]
[Result "1-0"]
[WhiteElo "1509"]
[BlackElo "1166"]
[TimeControl "180+1"]
[EndTime "9:53:25 PDT"]
[Termination "Uživatel OndrejBorkovec zvítězil matem"]

1. c4 {[%clk 0:03:00.9]} 1... e5 {[%clk 0:02:59.4]} 2. f4 {[%clk 0:03:00.2]}
2... exf4 {[%clk 0:02:58.1]} 3. Nf3 {[%clk 0:02:59.9]} 3... Nf6 {[%clk
0:02:57.9]} 4. d4 {[%clk 0:03:00.1]} 4... d5 {[%clk 0:02:56.6]} 5. Bxf4 {[%clk
0:02:58]} 5... Bd6 {[%clk 0:02:51.8]} 6. Bxd6 {[%clk 0:02:55.2]} 6... Qxd6
{[%clk 0:02:51.5]} 7. e3 {[%clk 0:02:55.4]} 7... O-O {[%clk 0:02:49.4]} 8. Be2
{[%clk 0:02:55]} 8... c5 {[%clk 0:02:47.3]} 9. O-O {[%clk 0:02:52.4]} 9... cxd4
{[%clk 0:02:44.9]} 10. exd4 {[%clk 0:02:51.1]} 10... b6 {[%clk 0:02:36.2]} 11.
Nc3 {[%clk 0:02:49.7]} 11... Ba6 {[%clk 0:02:35.1]} 12. Nb5 {[%clk 0:02:46.1]}
12... Bxb5 {[%clk 0:02:27.8]} 13. cxb5 {[%clk 0:02:46]} 13... Ne4 {[%clk
0:02:21.1]} 14. Rc1 {[%clk 0:02:41.6]} 14... Nd7 {[%clk 0:02:17.4]} 15. Qd3
{[%clk 0:02:41]} 15... Ndf6 {[%clk 0:02:16.5]} 16. Bd1 {[%clk 0:02:40.4]} 16...
Qb4 {[%clk 0:02:10.1]} 17. b3 {[%clk 0:02:36.4]} 17... Qa3 {[%clk 0:02:06.4]}
18. Bc2 {[%clk 0:02:35.5]} 18... Qxa2 {[%clk 0:02:02.8]} 19. Nd2 {[%clk
0:02:35.3]} 19... Qa3 {[%clk 0:01:47.9]} 20. Nxe4 {[%clk 0:02:27.5]} 20... Nxe4
{[%clk 0:01:47.5]} 21. Rce1 {[%clk 0:02:21.7]} 21... Qb4 {[%clk 0:01:44.2]} 22.
Re3 {[%clk 0:02:15.2]} 22... Nd2 {[%clk 0:01:40.8]} 23. Qxh7# {[%clk 0:02:12]}
1-0

[Event "Betsys MČR v online bleskovém šachu 2021"]
[Site "Chess.com"]
[Date "2021.04.17"]
[Round "6"]
[White "Petroniuss"]
[Black "tudlenudle"]
[Result "1/2-1/2"]
[WhiteElo "2292"]
[BlackElo "1943"]
[TimeControl "180+1"]
[EndTime "9:53:26 PDT"]
[Termination "Remíza opakováním pozice"]

1. e4 {[%clk 0:02:57.2]} 1... e5 {[%clk 0:03:00.3]} 2. Nf3 {[%clk 0:02:55.5]}
2... Nc6 {[%clk 0:03:00.8]} 3. d4 {[%clk 0:02:32.8]} 3... exd4 {[%clk
0:03:00.7]} 4. c3 {[%clk 0:02:33.2]} 4... d5 {[%clk 0:02:36.8]} 5. exd5 {[%clk
0:02:32.5]} 5... Qxd5 {[%clk 0:02:37.7]} 6. cxd4 {[%clk 0:02:32.5]} 6... Nf6
{[%clk 0:02:36.2]} 7. Nc3 {[%clk 0:02:31.5]} 7... Bb4 {[%clk 0:02:36.5]} 8. Be2
{[%clk 0:02:31.3]} 8... O-O {[%clk 0:02:30.2]} 9. O-O {[%clk 0:02:31.2]} 9...
Qh5 {[%clk 0:02:29.7]} 10. h3 {[%clk 0:02:26.3]} 10... Re8 {[%clk 0:02:25.9]}
11. Ne5 {[%clk 0:02:17.9]} 11... Qh4 {[%clk 0:02:08.7]} 12. Nf3 {[%clk 0:02:01]}
12... Qh5 {[%clk 0:02:07.8]} 13. Ne5 {[%clk 0:01:31.9]} 13... Qh4 {[%clk
0:02:07.3]} 14. Nf3 {[%clk 0:01:26.1]} 14... Qh5 {[%clk 0:02:06.3]} 1/2-1/2